fUST/lending_fUST_20241130
["ID","MTS","AMOUNT","RATE_DAILY","PERIOD"]
[343754815,1732956643262,-500.0,0.00028767,3]
[343754816,1732956643271,-500.0,0.00028767,3]
[343754817,1732956643281,-151.0,0.00028767,7]
[343754818,1732956643290,-151.0,0.00028767,7]
[343754819,1732956643299,-526.34455511,0.00028767,3]
[343754820,1732956643308,-568.441383,0.00028767,7]
[343754821,1732956643317,-285.081732,0.00028767,7]
[343754822,1732956643327,-568.441383,0.00028767,7]
[343754823,1732956643337,-509.84087437,0.00028767,3]
[343754824,1732956643346,-568.441383,0.00028767,7]
[343754825,1732956643356,-568.441383,0.00028767,7]
[343754826,1732956643365,-568.441383,0.00028767,7]
[343754827,1732956643374,-518.90287002,0.00028767,3]
[343754828,1732956643383,-568.441383,0.00028767,7]
[343754829,1732956643393,-568.441383,0.00028767,7]
[343754830,1732956643403,-500.0,0.00028767,3]
[343754831,1732956643412,-500.0,0.00028767,3]
[343754832,1732956643421,-568.441383,0.00028767,7]
[343754833,1732956643430,-500.0,0.00028767,3]
[343754834,1732956643439,-500.0,0.00028767,3]
[343754835,1732956643448,-535.99379385,0.00028767,3]
[343754836,1732956643458,-568.441383,0.00028767,7]
[343754837,1732956643467,-500.0,0.00028767,3]
[343754838,1732956643476,-500.0,0.00028767,3]
[343754839,1732956643485,-568.441383,0.00028767,7]
[343754840,1732956643495,-500.0,0.00028767,3]
[343754841,1732956643504,-500.0,0.00028767,3]
[343754842,1732956643513,-500.0,0.00028767,3]
[343754843,1732956643522,-503.81115644,0.00028767,3]
[343754844,1732956643532,-568.441383,0.00028767,7]
[343754845,1732956643543,-500.0,0.00028767,3]
[343754846,1732956643554,-568.441383,0.00028767,7]
[343754847,1732956643565,-500.0,0.00028767,3]
[343754848,1732956643577,-500.0,0.00028767,3]
[343754849,1732956643587,-568.441383,0.00028767,7]
[343754850,1732956643596,-500.0,0.00028767,3]
[343754851,1732956643607,-513.06191238,0.00028767,3]
[343754852,1732956643617,-236.54293667,0.00028767,3]
[343754853,1732956643627,-388.49767139,0.00028767,3]
[343754854,1732956643637,-568.441383,0.00028767,7]
[343754855,1732956643646,-500.0,0.00028767,3]
[343754856,1732956643655,-500.0,0.00028767,3]
[343754857,1732956643665,-568.441383,0.00028767,7]
[343754858,1732956643675,-500.0,0.00028767,3]
[343754859,1732956643684,-500.0,0.00028767,3]
[343754860,1732956643694,-568.441383,0.00028767,7]
[343754861,1732956643704,-180.38365568,0.00028767,3]
[343754862,1732956643713,-568.441383,0.00028767,7]
[343754863,1732956643724,-504.41649787,0.00028767,3]
[343754864,1732956643734,-568.441383,0.00028767,7]
[343754865,1732956643743,-568.441383,0.00028767,7]
[343754866,1732956643753,-568.441387,0.00028767,7]
[343754867,1732956643763,-500.0,0.00028767,3]
[343754868,1732956643773,-500.0,0.00028767,3]
[343754869,1732956643782,-500.0,0.00028767,3]
[343754870,1732956643791,-500.0,0.00028767,3]
[343754871,1732956643800,-500.0,0.00028767,3]
[343754872,1732956643810,-500.0,0.00028767,3]
[343754873,1732956643820,-500.0,0.00028767,3]
[343754874,1732956643829,-500.0,0.00028767,3]
[343754875,1732956643839,-500.0,0.00028767,3]
[343754876,1732956643848,-500.0,0.00028767,3]
[343754877,1732956643858,-500.0,0.00028767,3]
[343754878,1732956643867,-500.0,0.00028767,3]
[343754879,1732956643876,-500.0,0.00028767,3]
[343754880,1732956643888,-500.0,0.00028767,3]
[343754881,1732956643899,-500.0,0.00028767,3]
[343754882,1732956643908,-500.0,0.00028767,3]
[343754883,1732956643917,-500.0,0.00028767,3]
[343754884,1732956643927,-500.0,0.00028767,3]
[343754885,1732956643936,-500.0,0.00028767,3]
[343754886,1732956643950,-500.0,0.00028767,3]
[343754887,1732956643959,-258.83273839,0.00028767,3]
[343754888,1732956643968,-500.0,0.00028767,3]
[343754889,1732956643978,-501.32,0.00028767,3]
[343754890,1732956643989,-501.32,0.00028767,3]
[343754891,1732956643998,-501.32,0.00028767,3]
[343754892,1732956644008,-501.32,0.00028767,3]
[343754893,1732956644017,-501.32,0.00028767,3]
[343754894,1732956644028,-500.0,0.00028767,3]
[343754895,1732956644037,-500.0,0.00028767,3]
[343754896,1732956644047,-501.32,0.00028767,3]
[343754897,1732956644057,-500.0,0.00028767,3]
[343754898,1732956644066,-500.0,0.00028767,3]
[343754899,1732956644076,-501.32,0.00028767,3]
[343754900,1732956644085,-500.0,0.00028767,3]
[343754901,1732956644095,-500.0,0.00028767,3]
[343754902,1732956644104,-186.07828114,0.00028767,3]
[343754903,1732956644113,-501.32,0.00028767,3]
[343754904,1732956644122,-500.0,0.00028767,3]
[343754905,1732956644131,-501.32,0.00028767,3]
[343754906,1732956644142,-500.0,0.00028767,3]
[343754907,1732956644151,-501.32,0.00028767,3]
[343754908,1732956644162,-540.3885002,0.00028767,3]
[343754909,1732956644171,-501.32,0.00028767,3]
[343754910,1732956644180,-501.32,0.00028767,3]
[343754911,1732956644190,-501.32,0.00028767,3]
[343754912,1732956644199,-501.32,0.00028767,3]
[343754913,1732956644209,-501.32,0.00028767,3]
[343754914,1732956644219,-501.32,0.00028767,3]
[343754915,1732956644228,-501.32,0.00028767,3]
[343754916,1732956644238,-501.32,0.00028767,3]
[343754917,1732956644247,-501.32,0.00028767,3]
[343754918,1732956644256,-501.32,0.00028767,3]
[343754919,1732956644265,-501.32,0.00028767,3]
[343754920,1732956644275,-501.32,0.00028767,3]
[343754921,1732956644284,-500.97815118,0.00028767,3]
[343754922,1732956644293,-501.32,0.00028767,3]
[343754923,1732956644303,-501.55246978,0.00028767,3]
[343754924,1732956644312,-521.49370085,0.00028767,3]
[343754925,1732956644321,-500.0,0.00028767,3]
[343754926,1732956644331,-500.0,0.00028767,3]
[343754927,1732956644341,-500.0,0.00028767,3]
[343754928,1732956644350,-500.0,0.00028767,3]
[343754929,1732956644359,-500.0,0.00028767,3]
[343754930,1732956644369,-500.0,0.00028767,3]
[343754931,1732956644379,-287.08194011,0.00028767,3]
[343754932,1732956644391,-500.0,0.00028767,3]
[343754933,1732956644400,-501.98270289,0.00028767,3]
[343754934,1732956644409,-500.0,0.00028767,3]
[343754935,1732956644418,-229.75839795,0.00028767,3]
[343754936,1732956644428,-510.70559669,0.00028767,3]
[343754937,1732956644437,-500.0,0.00028767,3]
[343754938,1732956644447,-502.29702889,0.00028767,3]
[343754939,1732956644456,-500.0,0.00028767,3]
[343754940,1732956644466,-508.615558,0.00028767,3]
[343754941,1732956644475,-500.0,0.00028767,3]
[343754942,1732956644484,-500.0,0.00028767,3]
[343754943,1732956644493,-500.0,0.00028767,3]
[343754944,1732956644502,-500.0,0.00028767,3]
[343754945,1732956644511,-500.0,0.00028767,3]
[343754946,1732956644521,-500.0,0.00028767,3]
[343754947,1732956644530,-500.0,0.00028767,3]
[343754948,1732956644540,-500.0,0.00028767,3]
[343754949,1732956644549,-500.0,0.00028767,3]
[343754950,1732956644558,-500.0,0.00028767,3]
[343754951,1732956644568,-500.0,0.00028767,3]
[343754952,1732956644577,-500.0,0.00028767,3]
[343754953,1732956644586,-500.0,0.00028767,3]
[343754954,1732956644596,-500.0,0.00028767,3]
[343754955,1732956644606,-500.0,0.00028767,3]
[343754956,1732956644615,-500.0,0.00028767,3]
[343754957,1732956644625,-500.0,0.00028767,3]
[343754958,1732956644634,-500.0,0.00028767,3]
[343754959,1732956644645,-244.78114288,0.00028767,3]
[343754960,1732956644654,-500.0,0.00028767,3]
[343754961,1732956644663,-500.0,0.00028767,3]
[343754962,1732956644673,-500.0,0.00028767,3]
[343754963,1732956644682,-500.0,0.00028767,3]
[343754964,1732956644691,-151.0,0.00028767,6]
[343754965,1732956644701,-500.0,0.00028767,3]
[343754966,1732956644710,-614.59074957,0.00028767,3]
[343754967,1732956644719,-500.0,0.00028767,3]
[343754968,1732956644728,-155.96191501,0.00028767,3]
[343754969,1732956644738,-151.0,0.00028767,6]
[343754970,1732956644747,-500.0,0.00028767,3]
[343754971,1732956644757,-500.0,0.00028767,3]
[343754972,1732956644767,-512.50015225,0.00028767,3]
[343754973,1732956644776,-500.0,0.00028767,3]
[343754974,1732956644786,-500.0,0.00028767,3]
[343754975,1732956644796,-500.0,0.00028767,3]
[343754976,1732956644807,-500.0,0.00028767,3]
[343754977,1732956644816,-500.0,0.00028767,3]
[343754978,1732956644826,-500.0,0.00028767,3]
[343754979,1732956644835,-500.0,0.00028767,3]
[343754980,1732956644844,-500.0,0.00028767,3]
[343754981,1732956644854,-500.0,0.00028767,3]
[343754982,1732956644863,-500.0,0.00028767,3]
[343754983,1732956644872,-500.0,0.00028767,3]
[343754984,1732956644882,-500.0,0.00028767,3]
[343754985,1732956644893,-500.0,0.00028767,3]
[343754986,1732956644903,-500.0,0.00028767,3]
[343754987,1732956644912,-500.0,0.00028767,3]
[343754988,1732956644922,-500.0,0.00028767,3]
[343754989,1732956644931,-500.0,0.00028767,3]
[343754990,1732956644941,-242.50556237,0.00028767,3]
[343754991,1732956644953,-500.0,0.00028767,3]
[343754992,1732956644963,-202.0547048,0.00028767,3]
[343754993,1732956644973,-839.01,0.00028767,3]
[343754994,1732956644983,-839.01,0.00028767,3]
[343754995,1732956644994,-839.01,0.00028767,3]
[343754996,1732956645003,-839.01,0.00028767,3]
[343754997,1732956645088,-839.01,0.00028767,3]
[343754998,1732956645109,-839.01,0.00028767,3]
[343754999,1732956645119,-839.01,0.00028767,3]
[343755000,1732956645129,-839.01,0.00028767,3]
[343755001,1732956645142,-839.01,0.00028767,3]
[343755002,1732956645153,-500.0,0.00028767,3]
[343755003,1732956645163,-839.01,0.00028767,3]
[343755004,1732956645174,-500.0,0.00028767,3]
[343755005,1732956645188,-839.01,0.00028767,3]
[343755006,1732956645199,-500.0,0.00028767,3]
[343755007,1732956645213,-839.01,0.00028767,3]
[343755008,1732956645225,-500.0,0.00028767,3]
[343755009,1732956645235,-839.01,0.00028767,3]
[343755010,1732956645245,-839.01,0.00028767,3]
[343755011,1732956645255,-500.0,0.00028767,3]
[343755012,1732956645263,-839.01,0.00028767,3]
[343755013,1732956645273,-342.32572382,0.00028767,3]
[343755014,1732956645282,-839.01,0.00028767,3]
[343755015,1732956645291,-839.01,0.00028767,3]
[343755016,1732956645301,-839.01,0.00028767,3]
[343755017,1732956645310,-839.01,0.00028767,3]
[343755018,1732956645320,-839.01,0.00028767,3]
[343755019,1732956645329,-839.01,0.00028767,3]
[343755020,1732956645339,-839.01,0.00028767,3]
[343755021,1732956645349,-292.36062653,0.00028767,3]
[343755022,1732956645389,-546.64937347,0.00028767,3]
[343755023,1732956645399,-839.20172238,0.00028767,3]
[343755024,1732956645408,-500.0,0.00028767,3]
[343755025,1732956645418,-500.0,0.00028767,3]
[343755026,1732956645427,-500.0,0.00028767,3]
[343755027,1732956645436,-500.0,0.00028767,3]
[343755028,1732956645445,-309.14890415,0.00028767,3]
[343755029,1732956645457,-190.85109585,0.00028767,3]
[343755030,1732956645466,-131.08890415,0.00028767,3]
[343755078,1732956650052,-368.91109585,0.00028767,3]
[343755079,1732956650061,-500.0,0.00028767,3]
[343755080,1732956650071,-500.0,0.00028767,3]
[343755081,1732956650080,-512.73292664,0.00028767,3]
[343755082,1732956650090,-500.0,0.00028767,3]
[343755083,1732956650099,-500.0,0.00028767,3]
[343755084,1732956650109,-500.0,0.00028767,3]
[343755085,1732956650118,-500.0,0.00028767,3]
[343755086,1732956650128,-500.0,0.00028767,3]
[343755087,1732956650137,-500.0,0.00028767,3]
[343755088,1732956650159,-500.0,0.00028767,3]
[343755089,1732956650168,-529.80227583,0.00028767,3]
[343755090,1732956650178,-500.0,0.00028767,3]
[343755091,1732956650186,-500.0,0.00028767,3]
[343755092,1732956650196,-596.72441064,0.00028767,3]
[343755093,1732956650208,-26311.35,0.00028767,3]
[343755094,1732956650217,-15885.45851049,0.00028767,3]
[343755095,1732956650324,-10425.89148951,0.00028767,3]
[343755096,1732956650334,-12060.12619152,0.00028767,3]
[343755097,1732956650346,-14251.22380848,0.00028767,3]
[343755098,1732956650355,-5396.84741446,0.00028767,3]
[343755099,1732956650367,-734.30999991,0.00028767,3]
[343755100,1732956650419,-313.81,0.00028757,3]
[343755101,1732956650429,-10532.94,0.00028767,3]
[343755102,1732956650747,-9647.25258563,0.00028767,3]
[343755103,1732956650757,-1156.39086923,0.00028767,3]
[343755104,1732956650769,-1220.45936198,0.00028767,3]
[343755105,1732956650780,-424.0948984,0.00028767,3]
[343755106,1732956650791,-868.85810988,0.00028767,3]
[343755107,1732956650802,-526.78878084,0.00028767,3]
[343755108,1732956650813,-523.59809993,0.00028767,3]
[343755109,1732956650825,-432.36744558,0.00028767,3]
[343755110,1732956650837,-430.98260754,0.00028767,3]
[343755111,1732956650849,-416.29599998,0.00028767,3]
[343755112,1732956650860,-1161.67431419,0.00028767,3]
[343755113,1732956650872,-644.7965004,0.00028767,3]
[343755114,1732956650884,-739.1755455,0.00028767,3]
[343755115,1732956650896,-459.12100016,0.00028767,3]
[343755116,1732956650909,-498.88120003,0.00028767,3]
[343755117,1732956650922,-667.86,0.00028767,3]
[343755118,1732956650934,-511.212,0.00028767,3]
[343755119,1732956650947,-552.3269918,0.00028767,3]
[343755120,1732956651112,-4845.0,0.00022563,2]
[343755121,1732956651203,-155.0,0.00022563,2]
[343755122,1732956651213,-83.04893826,0.00022563,2]
[343755123,1732956651227,-3101.91839202,0.00022563,2]
[343755124,1732956651237,-500.0,0.00028767,3]
[343755125,1732956651246,-500.0,0.00028767,3]
[343755126,1732956651255,-328.05068359,0.00028767,3]
[343755127,1732956651265,-151.0,0.00028767,7]
[343755128,1732956651274,-151.0,0.00028767,7]
[343755129,1732956651283,-703.32,0.00028767,3]
[343755130,1732956651292,-500.0,0.00028767,3]
[343755131,1732956651302,-151.0,0.00028767,7]
[343755132,1732956651311,-703.32,0.00028767,3]
[343755133,1732956651321,-377.78752562,0.00028767,3]
[343755134,1732956651330,-703.32,0.00028767,3]
[343755135,1732956651340,-151.0,0.00028767,7]
[343755136,1732956651349,-703.32,0.00028767,3]
[343755137,1732956651358,-151.0,0.00028767,7]
[343755138,1732956651367,-703.32,0.00028767,3]
[343755139,1732956651467,-703.32,0.00028767,3]
[343755140,1732956651476,-151.0,0.00028767,7]
[343755141,1732956651486,-703.32,0.00028767,3]
[343755142,1732956651495,-703.32,0.00028767,3]
[343755143,1732956651504,-151.0,0.00028767,7]
[343755144,1732956651514,-703.32,0.00028767,3]
[343755145,1732956651524,-245.565703,0.00028767,7]
[343755146,1732956651534,-500.0,0.00028767,3]
[343755147,1732956651543,-703.32,0.00028767,3]
[343755148,1732956651553,-703.32,0.00028767,3]
[343755149,1732956651562,-703.32,0.00028767,3]
[343755150,1732956651571,-703.32,0.00028767,3]
[343755151,1732956651581,-703.32,0.00028767,3]
[343755152,1732956651590,-703.32,0.00028767,3]
[343755153,1732956651600,-703.32,0.00028767,3]
[343755154,1732956651609,-703.32,0.00028767,3]
[343755155,1732956651618,-703.32,0.00028767,3]
[343755156,1732956651627,-703.32,0.00028767,3]
[343755157,1732956651637,-703.32,0.00028767,3]
[343755158,1732956651646,-703.32,0.00028767,3]
[343755159,1732956651655,-703.32,0.00028767,3]
[343755160,1732956651665,-703.32,0.00028767,3]
[343755161,1732956651675,-703.55500711,0.00028767,3]
[343755162,1732956651684,-500.0,0.00028767,3]
[343755163,1732956651693,-508.34427669,0.00028767,3]
[343755164,1732956651703,-453.86778654,0.00028767,3]
[343755169,1732957384619,166.754928,0.00013973,2]
[343755250,1732957584121,500.0,0.0002599,30]
[343755251,1732957620599,482.52,0.0002599,30]
[343755252,1732957620624,17.48,0.0002599,30]
[343755253,1732957761155,-1169.27083333,0.0002,2]
[343755254,1732957761177,-300.0,0.00021499,2]
[343755255,1732957761198,-300.0,0.00021499,2]
[343755256,1732957761218,-500.0,0.000215,2]
[343755257,1732957761240,-500.0,0.000215,2]
[343755258,1732957761261,-500.0,0.000215,2]
[343755259,1732957761281,-500.0,0.000215,2]
[343755260,1732957761304,-447.25227804,0.000215,2]
[343755261,1732957761328,-420.0,0.00023649,2]
[343755262,1732957761349,-382.911115,0.00024547,2]
[343755285,1732957835425,-158.0,0.00025,2]
[343755286,1732957835436,-166.754928,0.00025156,2]
[343755287,1732957835447,-1169.27083333,0.000255,2]
[343755288,1732957835461,-1143.6160648,0.00025562,2]
[343755289,1732957835471,-200.0,0.00025562,15]
[343755290,1732957835481,-946.38492237,0.00026402,7]
[343755291,1732957835490,-2178.0,0.0002663,2]
[343755292,1732957835500,-300.0,0.00026989,2]
[343755293,1732957835509,-300.0,0.00026989,2]
[343755294,1732957835519,-8188.36516091,0.0002699,2]
[343755348,1732957840603,-10211.99999704,0.0002699,2]
[343755433,1732957931050,93.03360714,0.000244,2]
[343755434,1732958044943,166.251901,0.00013973,2]
[343755436,1732958290492,2849.17587243,0.00016001,2]
[343758025,1732958870490,166.251901,0.00013973,2]
[343758738,1732958900978,396.16554743,0.000125,2]
[343759319,1732958925767,-212.8417378,0.00027,60]
[343759321,1732958925810,-493.6082962,0.00027,60]
[343759323,1732958925844,-37693.11799435,0.00027,60]
[343759324,1732958925866,-212.8417378,0.00028082,30]
[343759326,1732958925889,-252.84,0.000286,31]
[343759327,1732958925911,-252.84,0.000286,31]
[343759329,1732958925932,-252.84,0.000286,31]
[343759330,1732958925954,-252.84,0.000286,31]
[343759332,1732958925976,-252.84,0.000286,31]
[343759334,1732958925998,-252.84,0.000286,31]
[343759335,1732958926020,-252.84,0.000286,31]
[343759337,1732958926045,-252.84,0.000286,31]
[343759338,1732958926066,-252.84,0.000286,31]
[343759340,1732958926091,-252.84,0.000286,31]
[343759341,1732958926112,-252.84,0.000286,31]
[343759343,1732958926135,-252.84,0.000286,31]
[343759344,1732958926156,-187.6082962,0.0002863,30]
[343759346,1732958926176,-153.0,0.0002863,30]
[343759347,1732958926198,-153.0,0.0002863,30]
[343759349,1732958926219,-6574.82193765,0.000287,30]
[343759822,1732958947112,-249.96105382,0.00019212,2]
[343759823,1732958947134,-1102.84799818,0.00019406,2]
[343759893,1732958950164,-3897.15200182,0.00019406,2]
[343759894,1732958950186,-300.0,0.00019989,2]
[343759896,1732958950208,-300.0,0.00019989,2]
[343759897,1732958950229,-27119.99365605,0.0001999,2]
[343759899,1732958950251,-1169.27083333,0.0002,2]
[343759900,1732958950275,-796.1210064,0.0002,2]
[343759902,1732958950296,-37400.0,0.0002,2]
[343759903,1732958950317,-5793.6699656,0.00020377,2]
[343760103,1732958960202,-19583.93611585,0.00020377,2]
[343760104,1732958960224,-5722.52956032,0.00021,5]
[343760106,1732958960245,-262.10053554,0.00021,2]
[343760107,1732958960266,-10289.15564688,0.00021,2]
[343760112,1732958960408,-236.21099034,0.00021,2]
[343760113,1732958960437,-6830.0,0.00021,2]
[343760115,1732958960460,-420.0,0.00021766,2]
[343760116,1732958960483,-420.0,0.00021988,2]
[343760118,1732958960505,-152.0,0.00023006,2]
[343760119,1732958960526,-160.000001,0.00023594,2]
[343760121,1732958960549,-587.0,0.00023701,2]
[343760122,1732958960575,-1475.48,0.00023839,11]
[343760124,1732958960596,-3063.15765762,0.00024,2]
[343760125,1732958960619,-587.0,0.00024187,2]
[343760127,1732958960640,-160.000001,0.00024467,2]
[343760128,1732958960662,-298.164819,0.00024747,2]
[343760130,1732958960684,-3401.18537595,0.00024759,2]
[343760131,1732958960705,-153.01314582,0.00024762,2]
[343760133,1732958960729,-1039.97,0.00024849,10]
[343760134,1732958960751,-500.0,0.00024859,2]
[343760136,1732958960774,-500.0,0.00024859,2]
[343760138,1732958960797,-500.0,0.00024859,2]
[343760139,1732958960822,-500.0,0.00024859,2]
[343760141,1732958960845,-500.0,0.00024859,2]
[343760142,1732958960869,-500.0,0.00024859,2]
[343760144,1732958960891,-500.0,0.00024859,2]
[343760145,1732958960913,-500.0,0.00024859,2]
[343760147,1732958960934,-500.0,0.00024859,2]
[343760148,1732958960956,-500.0,0.00024859,2]
[343760150,1732958960977,-500.0,0.00024859,2]
[343760151,1732958960999,-236.00705319,0.00024859,2]
[343760153,1732958961022,-500.0,0.00024859,2]
[343760154,1732958961044,-500.0,0.00024859,2]
[343760156,1732958961068,-424.81312635,0.00024859,2]
[343760157,1732958961090,-500.0,0.00024859,2]
[343760159,1732958961114,-500.0,0.00024859,2]
[343760160,1732958961137,-500.0,0.00024859,2]
[343760162,1732958961159,-336.89571729,0.00024859,2]
[343760163,1732958961182,-430.0,0.00024859,2]
[343760165,1732958961205,-500.0,0.00024859,2]
[343760167,1732958961228,-500.0,0.00024859,2]
[343760168,1732958961250,-500.0,0.00024859,2]
[343760170,1732958961272,-331.41908731,0.00024859,2]
[343760171,1732958961295,-500.0,0.00024859,2]
[343760173,1732958961317,-500.0,0.00024859,2]
[343760174,1732958961340,-573.90748532,0.00024859,2]
[343760176,1732958961364,-500.0,0.00024859,2]
[343760177,1732958961387,-500.0,0.00024859,2]
[343760179,1732958961410,-500.0,0.00024859,2]
[343760181,1732958961433,-500.0,0.00024859,2]
[343760182,1732958961456,-500.0,0.00024859,2]
[343760184,1732958961477,-500.0,0.00024859,2]
[343760185,1732958961499,-500.0,0.00024859,2]
[343760187,1732958961522,-23413.66804364,0.00024861,2]
[343760188,1732958961544,-2380.30372466,0.00024862,2]
[343760190,1732958961566,-156.33,0.00024864,3]
[343760191,1732958961587,-781.69,0.00024864,3]
[343760193,1732958961608,-499.49400801,0.00024869,2]
[343760194,1732958961628,-1432.69034687,0.0002487,2]
[343760196,1732958961648,-222.4557394,0.00024872,2]
[343760197,1732958961669,-500.0,0.00024872,2]
[343760199,1732958961690,-248.67678795,0.00024872,2]
[343760200,1732958961711,-211.39072909,0.00024872,2]
[343760202,1732958961736,-265.61578189,0.00024872,2]
[343760204,1732958961762,-180.14321687,0.00024873,2]
[343760205,1732958961784,-217.41724792,0.00024873,2]
[343760207,1732958961806,-239.9,0.00024873,2]
[343760208,1732958961826,-261.7,0.00024873,2]
[343760210,1732958961847,-160.0,0.00024873,2]
[343760211,1732958961869,-501.12072527,0.00024873,2]
[343760213,1732958961890,-500.0,0.00024873,2]
[343760214,1732958961910,-366.94440381,0.00024873,2]
[343760216,1732958961930,-500.0,0.00024873,2]
[343760217,1732958961949,-163.5,0.00024873,2]
[343760219,1732958961970,-160.5,0.00024873,2]
[343760220,1732958961992,-24900.0,0.00024874,2]
[343760222,1732958962014,-2000.0,0.000249,2]
[343760223,1732958962036,-245.25292895,0.000249,2]
[343760225,1732958962058,-155.01550887,0.00025,2]
[343760226,1732958962079,-2537.91488703,0.00025,2]
[343760228,1732958962103,-157.0,0.00025,2]
[343760230,1732958962127,-160.000001,0.00025339,2]
[343760231,1732958962150,-500.0,0.00025421,2]
[343760233,1732958962172,-2934.0,0.00025431,2]
[343760234,1732958962194,-3401.18537588,0.00025572,2]
[343760236,1732958962216,-823.0,0.00025808,2]
[343760237,1732958962238,-245.25292893,0.00025842,2]
[343760370,1732958968223,1169.27083333,0.0002,2]
[343760474,1732958972662,333.88714235,0.00024873,2]
[343760705,1732958982941,377.25853918,0.00024873,2]
[343760791,1732958987487,1169.27083333,0.0002,2]
[343761688,1732959032674,-300.0,0.00025999,2]
[343761689,1732959032687,-300.0,0.00025999,2]
[343761690,1732959032696,-975.34834189,0.00026,30]
[343761692,1732959032707,-811.75238651,0.00026,30]
[343761693,1732959032733,-1560.84037254,0.00026,30]
[343761694,1732959032746,-8357.12695478,0.00026,30]
[343761696,1732959032756,-160.000001,0.00026212,2]
[343761697,1732959032765,-166.251901,0.00026274,2]
[343761698,1732959032774,-3401.18537588,0.00026385,2]
[343761699,1732959032782,-1169.27083333,0.00026385,2]
[343761700,1732959032793,-3817.7630048,0.00026402,7]
[343761702,1732959032804,-2178.0,0.00026452,2]
[343761703,1732959032814,-164.007,0.00026452,13]
[343761704,1732959032826,-202.38351378,0.00026473,2]
[343761705,1732959032836,-500.0,0.00026473,2]
[343761706,1732959032845,-500.0,0.00026473,2]
[343761708,1732959032854,-500.0,0.000265,2]
[343761709,1732959032864,-502.0837342,0.000265,2]
[343761710,1732959032873,-500.0,0.0002655,7]
[343761711,1732959032883,-2768.51243853,0.00026773,2]
[343761712,1732959032892,-245.25292893,0.00026784,2]
[343761714,1732959032901,-191.625302,0.0002689,2]
[343761715,1732959032911,-183.5841,0.00026944,2]
[343761716,1732959032922,-11706.83402182,0.00027,2]
[343761717,1732959032931,-1137.86682111,0.00027,2]
[343761718,1732959032941,-5996.2751196,0.00027,10]
[343761720,1732959032950,-646.29790983,0.00027021,2]
[343761721,1732959032960,-1000.0,0.00027021,2]
[343761722,1732959032970,-160.88376633,0.00027048,2]
[343761723,1732959032979,-160.000001,0.00027085,2]
[343761724,1732959032989,-3401.18537588,0.00027198,2]
[343761726,1732959032998,-500.0,0.00027397,2]
[343761727,1732959033008,-4201.60741,0.000275,2]
[343761728,1732959033017,-245.25292893,0.00027725,2]
[343761729,1732959033026,-3401.18537588,0.00028011,2]
[343761730,1732959033036,-1500.0,0.00028022,5]
[343761732,1732959033046,-420.0,0.00028137,2]
[343761733,1732959033056,-191.625302,0.00028235,2]
[343761734,1732959033065,-605.39467192,0.00028457,6]
[343761735,1732959033075,-654.0,0.00028495,15]
[343761736,1732959033086,-3200.0,0.00028576,2]
[343761737,1732959033095,-420.0,0.00028599,2]
[343761739,1732959033105,-1388.38,0.000286,2]
[343761740,1732959033115,-1788.44109381,0.00028667,2]
[343761741,1732959033125,-245.25292893,0.00028667,2]
[343761742,1732959033136,-224.83710321,0.00028667,2]